bitfinex-derivatives/quotes_ETHF0:USTF0_20241023
["timestamp","ask_amount","ask_price","bid_price","bid_amount"]
[1729706058813,5.02934533,2506.6,2506.5,0.39934]
[1729706059313,5.42866533,2506.6,2506.5,0.39934]
[1729706059707,5.02934533,2506.6,2506.5,0.39934]
[1729706060612,5.42866533,2506.6,2506.5,0.39934]
[1729706061013,12.13894533,2506.6,2505.9,1.76619]
[1729706061215,0.39936,2506.4,2506.3,0.39935]
[1729706061515,4.77551353,2506.4,2506.3,0.39935]
[1729706062513,0.39939,2506.3,2506.2,0.39937]
[1729706062716,0.3994,2506.2,2506.1,0.39939]
[1729706063014,1.4863,2506.3,2506.1,0.39939]
[1729706063015,4.7206914,2506.3,2506.1,0.39939]
[1729706063207,4.3213114,2506.3,2506.2,0.39938]
[1729706063611,4.1965065,2506.4,2506.3,0.39937]
[1729706063808,1.4396,2506.5,2506.3,3.12]
[1729706064011,1.4396,2506.5,2506.4,0.39935]
[1729706064812,1.83894,2506.5,2506.4,0.39935]
[1729706065014,1.4396,2506.5,2506.4,0.39935]
[1729706066019,1.83894,2506.5,2506.4,0.39935]
[1729706066511,0.39937,2506.4,2506.3,0.39935]
[1729706068719,0.39937,2506.4,2506.1,3.12]
[1729706068919,0.39939,2506.3,2506.2,0.39937]
[1729706069335,4.55981893,2506.3,2506.2,0.39937]
[1729706069526,0.39944,2506.0,2505.9,0.39942]
[1729706072222,0.39945,2505.9,2505.8,0.39943]
[1729706072419,2.2144,2506.1,2505.7,43.92]
[1729706072628,4.55419612,2506.0,2505.9,0.39942]
[1729706075830,4.15475612,2506.0,2505.9,0.39942]
[1729706076029,4.15475612,2506.0,2505.9,7.50982]
[1729706076330,1.4166,2506.4,2506.3,0.39937]
[1729706077120,1.81595,2506.4,2506.3,0.39937]
[1729706077325,1.4166,2506.4,2506.3,0.39937]
[1729706078730,0.6814,2506.7,2506.2,6.3278]
[1729706079031,2.45641,2506.7,2506.6,0.39932]
[1729706079428,6.62534775,2506.7,2506.6,0.39932]
[1729706082137,6.62533775,2506.7,2506.6,0.39932]
[1729706082431,0.39934,2506.6,2506.5,0.39933]
[1729706082630,6.22603775,2506.7,2506.6,0.39932]
[1729706082631,6.62535775,2506.7,2506.6,0.39932]
[1729706082831,2.45642,2506.7,2506.6,0.39932]
[1729706083034,7.05977691,2506.7,2506.6,0.39932]
[1729706083230,7.12594734,2506.7,2506.6,0.39932]
[1729706085937,7.19211777,2506.7,2506.6,0.39932]
[1729706086732,7.12594735,2506.7,2506.6,0.39932]
[1729706087832,6.72662735,2506.7,2506.4,3.12]
[1729706088032,6.72662735,2506.7,2506.5,0.39932]
[1729706088033,0.46552044,2506.6,2506.5,0.39932]
[1729706088237,0.06617044,2506.6,2506.2,8.18329288]
[1729706088428,0.39935,2506.5,2506.4,0.39934]
[1729706091332,0.39937,2506.4,2506.3,0.39934]
[1729706093636,0.3994,2506.2,2506.1,0.39937]
[1729706093829,2.46129,2506.3,2506.2,0.39938]
[1729706094339,7.02182655,2506.3,2506.2,0.39938]
[1729706095632,0.3994,2506.2,2506.1,0.39938]
[1729706096138,4.56341287,2506.2,2506.1,0.39938]
[1729706096838,4.16401287,2506.2,2505.9,0.6642]
[1729706097140,4.16401287,2506.2,2505.8,4.11862]
[1729706097141,0.39944,2505.9,2505.8,0.39942]
[1729706097339,0.39943,2506.0,2505.9,0.39941]
[1729706100740,5.16248287,2506.2,2505.7,45.4247]
[1729706100935,1.82324,2505.9,2505.8,0.39945]
[1729706101742,1.4238,2505.9,2505.8,0.39945]
[1729706102238,1.4238,2505.9,2505.8,3.51945]
[1729706102937,1.82323,2505.9,2505.8,3.51945]
[1729706103135,1.4238,2505.9,2505.8,3.51945]
[1729706103940,1.82323,2505.9,2505.8,0.39945]
[1729706104138,2.5987171,2505.9,2505.8,0.39945]
[1729706104338,0.39945,2505.8,2505.7,41.19946]
[1729706104533,0.46564105,2505.8,2505.7,41.19946]
[1729706104734,4.95405468,2505.8,2505.7,41.19946]
[1729706104933,4.95405623,2505.8,2505.7,41.19946]
[1729706105442,4.88786363,2505.8,2505.7,41.19946]
[1729706106144,0.39951,2505.6,2505.5,0.3995]
[1729706106440,0.39951,2505.5,2505.4,0.39949]
[1729706106638,2.58001,2505.5,2505.4,41.19949]
[1729706107738,2.1805,2505.5,2505.4,41.19949]
[1729706108842,6.34692236,2505.5,2505.4,41.19949]
[1729706109042,6.34692236,2505.5,2505.4,40.8]
[1729706109043,6.74642236,2505.5,2505.4,40.8]
[1729706109348,0.39951,2505.4,2505.3,3.60733]
[1729706109539,6.74643236,2505.5,2505.4,0.39951]
[1729706109736,2.58001,2505.5,2505.4,0.39951]
[1729706110040,7.03828183,2505.5,2505.4,0.39951]
[1729706111340,4.45827183,2505.5,2505.4,3.51951]
[1729706111546,4.45827183,2505.5,2505.4,5.67801]
[1729706111841,4.85777183,2505.5,2505.4,2.55801]
[1729706112038,4.85777183,2505.5,2505.4,1.13721]
[1729706112241,4.45827183,2505.5,2505.4,1.13721]
[1729706112940,0.99845,2506.3,2505.8,0.39945]
[1729706113142,1.9338925,2506.2,2506.1,0.3994]
[1729706113448,0.39941,2506.1,2506.0,0.3994]
[1729706113839,4.57658317,2506.1,2506.0,0.3994]
[1729706114354,4.17717317,2506.1,2505.7,1.4208]
[1729706114540,4.17717317,2506.1,2505.6,7.32647]
[1729706114740,0.39944,2505.9,2505.8,0.39943]
[1729706115139,4.81637371,2505.9,2505.8,0.39943]
[1729706115347,4.41693371,2505.9,2505.8,0.39943]
[1729706115646,0.39943,2505.9,2505.8,0.39943]
[1729706116141,4.84092127,2505.9,2505.8,0.39943]
[1729706116346,0.39943,2505.9,2505.8,0.39943]
[1729706116541,4.84092127,2505.9,2505.8,0.39943]
[1729706119552,0.39946,2505.8,2505.7,0.39945]
[1729706119848,2.53696,2505.8,2505.7,0.39945]
[1729706120347,2.53696,2505.8,2505.7,1.83945]
[1729706120749,2.53696,2505.8,2505.7,1.44]
[1729706121044,0.39946,2505.7,2505.6,1.83947]
[1729706121449,4.82749647,2505.7,2505.6,1.83947]
[1729706122246,4.82749647,2505.7,2505.6,0.39947]
[1729706125752,4.42803647,2505.7,2505.5,3.369278]
[1729706126058,0.39948,2505.6,2505.5,3.60728]
[1729706126254,0.39948,2505.6,2505.5,3.2078]
[1729706126455,4.76481621,2505.6,2505.5,3.6073]
[1729706128659,4.89721015,2505.6,2505.5,3.2078]
[1729706128856,4.89721015,2505.6,2505.5,3.6073]
[1729706129557,4.89721015,2505.6,2505.5,0.3995]
[1729706129862,0.3995,2505.5,2505.4,41.1995]
[1729706130160,0.06619725,2505.5,2505.4,41.1995]
[1729706130355,4.42083439,2505.5,2505.4,41.1995]
[1729706132650,4.82033439,2505.5,2505.4,41.1995]
[1729706132958,4.42083439,2505.5,2505.4,41.1995]
[1729706133159,4.42083439,2505.5,2505.4,44.4073]
[1729706133762,4.82033439,2505.5,2505.4,44.4073]
[1729706134454,4.42083439,2505.5,2505.4,47.5273]
[1729706134654,0.06619669,2505.6,2505.5,0.3995]
[1729706134855,0.06619669,2505.6,2505.5,6.4523]
[1729706136953,0.46567669,2505.6,2505.5,2.4611]
[1729706137160,4.77445735,2505.6,2505.5,0.3995]
[1729706137360,4.37497735,2505.6,2505.5,0.3995]
[1729706137561,4.30878066,2505.6,2505.5,0.3995]
[1729706137958,4.70826066,2505.6,2505.5,0.3995]
[1729706141665,4.30878066,2505.6,2505.5,0.3995]
[1729706142158,0.39942,2506.1,2506.0,0.3994]
[1729706142362,0.39942,2506.1,2506.0,1.8394]
[1729706142573,4.86005235,2506.1,2506.0,1.8394]
[1729706142765,4.46063235,2506.1,2506.0,1.8394]
[1729706143674,4.86003235,2506.1,2506.0,1.8394]
[1729706143873,4.46063235,2506.1,2506.0,1.8394]
[1729706144263,4.46063235,2506.1,2506.0,0.3994]
[1729706144768,4.86003235,2506.1,2506.0,0.3994]
[1729706144970,4.46063235,2506.1,2505.7,3.36555486]
[1729706145175,4.86004235,2506.1,2506.0,0.39942]
[1729706145575,4.46063235,2506.1,2505.7,3.36555486]
[1729706145876,0.39944,2505.9,2505.8,0.39942]
[1729706146075,0.39944,2505.9,2505.8,3.60722]
[1729706146271,0.7156,2506.0,2505.8,3.60722]
[1729706146471,1.11503,2506.0,2505.9,0.39943]
[1729706146871,5.41216037,2506.0,2505.9,0.39943]
[1729706147570,4.29713037,2506.0,2505.9,0.39943]
[1729706147871,4.29713037,2506.0,2505.9,2.52743]
[1729706152076,4.29713037,2506.0,2505.9,1.13963]
[1729706152281,4.29713037,2506.0,2505.9,0.39943]
[1729706153379,4.69655037,2506.0,2505.9,0.39943]
[1729706153579,4.29713037,2506.0,2505.9,0.39943]
[1729706154783,4.69655037,2506.0,2505.9,0.39943]
[1729706156581,4.29713037,2506.0,2505.9,0.39943]
[1729706162878,1.3962,2506.2,2506.1,0.3994]
[1729706163489,1.46238012,2506.2,2506.1,0.3994]
[1729706165588,6.37798797,2506.2,2506.1,0.3994]
[1729706165789,6.37798797,2506.2,2505.9,3.2078]
[1729706165790,5.97860797,2506.2,2505.9,3.2078]
[1729706165987,1.05922,2506.1,2506.0,0.3994]
[1729706166280,5.63732566,2506.1,2506.0,0.3994]
[1729706167080,0.39942,2506.0,2505.9,0.39943]
[1729706167483,0.39943,2505.9,2505.8,1.83944]
[1729706168281,4.72622793,2505.9,2505.8,1.83944]
[1729706169589,4.72622793,2505.9,2505.8,1.44]
[1729706169885,8.71662793,2505.9,2505.8,1.44]
[1729706170090,8.71662793,2505.9,2505.8,1.83945]
[1729706170683,8.71662793,2505.9,2505.8,1.44]
[1729706170881,8.71662793,2505.9,2505.8,1.83945]
[1729706172880,9.75719793,2505.9,2505.7,1.44]
[1729706173195,1.68305,2505.8,2505.7,1.83946]
[1729706173585,6.25014525,2505.8,2505.7,1.83946]
[1729706174688,6.25014525,2505.8,2505.7,1.44]
[1729706174891,0.3995,2505.5,2505.4,44.0078]
[1729706175186,4.90656177,2505.5,2505.4,4.6478]
[1729706175392,8.89776177,2505.5,2505.4,4.6478]
[1729706175591,8.89776177,2505.5,2505.4,5.04731]
[1729706175788,8.89776177,2505.5,2505.4,4.6478]
[1729706176181,8.89776177,2505.5,2505.3,40.8]
[1729706176182,0.39951,2505.4,2505.3,42.63953]
[1729706176382,1.04891,2505.4,2505.3,42.63953]
[1729706176589,5.25420803,2505.4,2505.3,42.24]
[1729706176986,5.25420803,2505.4,2505.3,1.44]
[1729706178289,9.24540803,2505.4,2505.3,1.44]
[1729706178691,10.28589803,2505.4,2505.2,42.24]
[1729706178885,1.05743,2505.3,2505.2,1.44]
[1729706179294,10.03807648,2505.3,2505.2,1.44]
[1729706179490,11.07854648,2505.3,2505.1,1.44]
[1729706179801,0.39959,2504.9,2504.8,3.2078]
[1729706180095,4.73086986,2504.9,2504.8,4.6478]
[1729706180300,8.72286986,2504.9,2504.8,4.6478]
[1729706180594,9.95996986,2504.9,2504.8,4.6478]
[1729706180795,9.95996986,2504.9,2504.8,5.04741]
[1729706180995,9.95996986,2504.9,2504.8,4.6478]
[1729706181911,0.39964,2504.6,2504.5,40.8]
[1729706182090,0.39964,2504.6,2504.3,0.39967]
[1729706182091,0.39967,2504.4,2504.3,1.44]
[1729706182287,0.39969,2504.3,2504.0,6.9868]
[1729706182489,0.39972,2504.2,2504.1,40.8]
[1729706182693,4.69531094,2504.2,2504.1,40.8]
[1729706182895,0.39975,2503.9,2503.7,3.51977]
[1729706183095,0.39975,2503.9,2503.7,0.39977]
[1729706183301,4.4387119,2503.8,2503.7,0.39978]
[1729706183494,4.8384819,2503.8,2503.7,0.39978]
[1729706183693,4.4387119,2503.8,2503.6,7.6174]
[1729706183896,4.4387119,2503.8,2503.7,0.39978]
[1729706183897,0.39977,2503.8,2503.7,0.39978]
[1729706184096,0.39978,2503.7,2503.6,3.2078]
[1729706184291,0.39978,2503.7,2503.6,3.6076]
[1729706184497,4.47434073,2503.7,2503.6,3.6076]
[1729706185498,4.87412073,2503.7,2503.6,3.6076]
[1729706185698,0.39978,2503.7,2503.6,3.2078]
[1729706186007,5.00125102,2503.7,2503.6,3.2078]
[1729706187298,0.39982,2503.5,2503.3,1.2413]
[1729706187494,0.39982,2503.5,2503.3,1.64114]
[1729706187707,4.52352074,2503.4,2503.3,1.64114]
[1729706188611,4.36084375,2503.7,2503.2,0.39986]
[1729706188911,0.39986,2503.2,2503.1,3.60767]
[1729706189302,4.6396533,2503.2,2503.1,3.60767]
[1729706189603,4.2397933,2503.2,2503.1,44.40767]
[1729706189800,4.6396533,2503.2,2503.1,44.40767]
[1729706189995,4.15550309,2503.4,2503.1,44.0078]
[1729706190206,4.15550309,2503.2,2503.1,41.19988]
[1729706190602,0.39985,2503.3,2503.2,0.39986]
[1729706190803,4.55536309,2503.2,2503.1,41.19987]
[1729706191007,0.39986,2503.2,2503.1,41.19987]
[1729706191203,4.52176153,2503.4,2503.1,40.8]
[1729706191406,5.0782,2503.5,2503.1,41.19987]
[1729706191407,4.92162153,2503.2,2503.1,41.19987]
[1729706191709,0.39986,2503.2,2503.1,40.8]
[1729706191906,4.92162153,2503.2,2503.1,40.8]
[1729706192702,8.91682153,2503.2,2503.1,40.8]
[1729706193599,12.12462153,2503.2,2503.1,40.8]
[1729706193805,4.92162153,2503.2,2503.1,40.8]
[1729706195312,8.91682153,2503.2,2503.1,40.8]
[1729706195612,4.72108126,2503.2,2503.1,40.8]
[1729706196012,8.71628126,2503.2,2503.1,40.8]
[1729706199806,8.71632126,2503.2,2503.1,40.8]
[1729706200613,7.71562886,2503.2,2503.1,40.8]
[1729706201208,3.72042886,2503.2,2503.1,40.8]
[1729706201407,0.39994,2503.0,2502.9,0.39995]
[1729706201810,8.67220784,2503.0,2502.9,0.39995]
[1729706202009,8.88806784,2503.0,2502.9,41.19995]
[1729706202313,4.89286784,2503.0,2502.9,41.19995]
[1729706202617,2.87608805,2503.0,2502.9,41.19995]
[1729706205720,3.27602805,2503.0,2502.9,40.8]
[1729706205918,7.27122805,2503.0,2502.9,40.8]
[1729706206118,8.48462805,2503.0,2502.9,40.8]
[1729706206507,0.39997,2502.8,2502.7,1.04277]
[1729706206712,0.39997,2502.9,2502.8,0.39996]
[1729706207114,4.90741899,2502.9,2502.8,0.39996]
[1729706208620,4.90741899,2502.9,2502.7,0.6428]
[1729706208820,0.39998,2502.7,2502.6,41.19999]
[1729706209025,0.39998,2502.7,2502.6,40.8]
[1729706209318,8.71698846,2502.7,2502.6,40.8]
[1729706209515,8.71698846,2502.7,2502.5,0.40001]
[1729706209516,0.40001,2502.6,2502.5,0.40001]
[1729706209716,0.40002,2502.5,2502.4,0.97642]
[1729706210025,5.01331405,2502.5,2502.4,0.40003]
[1729706210221,5.01331405,2502.5,2502.3,41.4322]
[1729706210222,5.83479405,2502.5,2502.3,41.4322]
[1729706210429,6.23482405,2502.5,2502.4,0.40003]
[1729706212224,0.40003,2502.4,2502.3,41.20004]
[1729706212417,5.83479405,2502.5,2502.4,0.40003]
[1729706212418,6.23482405,2502.5,2502.4,0.40003]
[1729706212718,0.40005,2502.3,2502.2,3.2078]
[1729706212923,0.40005,2502.3,2501.7,1.1606794]
[1729706212924,3.12,2502.3,2502.0,0.40009]
[1729706213125,0.6144,2502.2,2502.1,40.8]
[1729706213423,5.27937839,2502.2,2502.1,40.8]
[1729706213615,5.27937839,2502.2,2502.1,0.40008]
[1729706213818,0.40009,2502.1,2502.0,0.40008]
[1729706214014,0.40011,2501.9,2501.8,4.23541]
[1729706214219,3.12,2502.1,2501.4,3.12]
[1729706214220,0.32601713,2502.0,2501.7,40.8]
[1729706214427,0.40013,2501.8,2501.7,40.8]
[1729706214818,4.56597362,2501.8,2501.7,41.20015]
[1729706215322,4.56597362,2501.8,2501.7,0.40015]
[1729706215519,4.56597362,2501.8,2501.5,0.6124]
[1729706215720,4.96611362,2501.8,2501.6,40.8]
[1729706215919,7.78058726,2501.9,2501.6,40.8]
[1729706216124,1.91132713,2502.0,2501.8,0.40013]
[1729706216428,4.7515599,2501.9,2501.8,0.40013]
[1729706216616,0.40015,2501.7,2501.6,0.40016]
[1729706217025,4.3514499,2501.7,2501.6,0.40016]
[1729706217221,4.7516099,2501.7,2501.5,1.01257]
[1729706217619,4.3514499,2501.7,2501.5,0.6124]
[1729706217930,4.7515999,2501.7,2501.5,0.6124]
[1729706218127,4.3514499,2501.7,2501.2,3.2078]
[1729706218422,0.6061,2501.6,2501.5,0.40018]
[1729706218818,5.01920797,2501.6,2501.5,0.40018]
[1729706219317,5.01920797,2501.6,2501.5,41.20018]
[1729706220924,9.01680797,2501.6,2500.9,3.2078]
[1729706221120,3.8131,2501.5,2501.4,0.40018]
[1729706221520,12.03114703,2501.5,2501.4,0.40018]
[1729706221719,12.43132703,2501.5,2501.4,0.40018]
[1729706221926,8.03354703,2501.5,2501.4,0.40018]
[1729706222230,8.43372703,2501.5,2501.3,0.4002]
[1729706222628,7.82842703,2501.5,2501.3,0.4002]
[1729706222834,8.43622703,2501.5,2501.3,0.4002]
[1729706223128,7.42824703,2501.5,2501.4,0.40019]
[1729706226126,7.42824703,2501.5,2501.4,4.39779]
[1729706226528,7.42824703,2501.5,2501.4,6.0195525]
[1729706228430,4.22044703,2501.5,2501.4,6.0195525]
[1729706229538,3.2078,2501.7,2501.6,0.40016]
[1729706230836,3.2078,2501.7,2501.6,7.51776]
[1729706231139,3.2078,2502.0,2501.9,0.40011]
[1729706231529,7.8190025,2502.0,2501.9,0.40011]
[1729706231725,4.85271,2502.0,2501.9,41.20011]
[1729706232135,9.26268434,2502.0,2501.9,41.20011]
[1729706232441,9.26268434,2502.0,2501.9,0.40011]
[1729706233438,0.40011,2501.9,2501.8,41.79501]
[1729706233648,0.40011,2501.9,2501.8,41.79502]
[1729706233938,4.61911033,2501.9,2501.8,41.79502]
[1729706234142,4.61911033,2501.9,2501.8,41.3949]
[1729706234449,0.40013,2501.8,2501.7,0.40014]
[1729706234628,4.21900033,2501.9,2501.5,0.5904]
[1729706234834,0.40016,2501.7,2501.6,0.40015]
[1729706235341,5.23475928,2501.7,2501.6,0.40015]
[1729706236342,4.83459928,2501.7,2501.6,0.40015]
[1729706243437,5.23474928,2501.7,2501.6,0.40015]
[1729706243643,4.83459928,2501.7,2501.6,0.40015]
[1729706244346,5.23474928,2501.7,2501.6,0.40015]
[1729706245456,15.15999928,2501.7,2501.4,0.40019]
[1729706245649,3.52018,2501.5,2501.4,0.40019]
[1729706246053,12.06997565,2501.5,2501.4,0.40019]
[1729706246844,0.4002,2501.4,2501.3,0.40019]
[1729706247040,11.66979565,2501.5,2501.4,0.40019]
[1729706247041,4.95238565,2501.5,2501.4,0.40019]
[1729706247245,0.40019,2501.5,2501.4,0.40019]
[1729706247448,4.81600045,2501.5,2501.4,0.40019]
[1729706248549,4.41581045,2501.5,2501.1,1.00061]
[1729706248744,3.608,2501.4,2501.3,0.4002]
[1729706249242,8.12005018,2501.4,2501.3,0.4002]
[1729706249865,7.78617796,2501.4,2501.0,1.1923]
[1729706250060,7.78617796,2501.4,2501.1,0.40026]
[1729706250061,0.40027,2501.2,2501.1,0.40026]
[1729706250352,4.80937972,2501.2,2501.1,0.40026]
[1729706250550,5.99197972,2501.2,2501.1,0.40026]
[1729706250948,5.99197972,2501.2,2501.0,0.40028]
[1729706250949,0.40029,2501.1,2501.0,0.40028]
[1729706251248,7.86369478,2501.1,2501.0,0.40028]
[1729706252245,7.93003314,2501.1,2501.0,0.40028]
[1729706252447,11.0500348,2501.1,2500.9,0.4003]
[1729706252643,11.0500348,2501.1,2500.8,0.40033]
[1729706252644,0.06634157,2501.0,2500.8,0.40033]
[1729706252946,4.30514715,2500.9,2500.8,0.40033]
[1729706253152,4.89064715,2500.9,2500.8,0.40033]
[1729706253450,0.5855,2500.9,2500.8,0.40033]
[1729706253644,5.06619363,2500.9,2500.6,40.8]
[1729706253847,5.06619363,2500.9,2500.7,0.40033]
[1729706253848,4.78973,2500.8,2500.7,0.40033]
[1729706254050,4.78974,2500.8,2500.6,41.20034]
[1729706254252,9.05744319,2500.8,2500.7,0.40034]
[1729706254455,8.65710319,2500.8,2500.7,0.40031]
[1729706254756,9.05740319,2500.8,2500.7,0.40031]
[1729706254952,9.05740319,2500.8,2500.4,1.0009]
[1729706254953,8.72345194,2500.8,2500.4,1.0009]
[1729706255148,0.40031,2500.7,2500.6,0.40032]
[1729706255453,4.60065074,2500.7,2500.6,0.40032]
[1729706255854,4.60066074,2500.7,2500.6,0.40032]
[1729706256056,4.20034074,2500.7,2500.6,0.40032]
[1729706256251,11.31954074,2500.7,2500.5,41.20034]
[1729706256445,7.72067074,2500.7,2500.6,0.40033]
[1729706256851,11.71987074,2500.7,2500.6,0.40033]
[1729706257051,0.40034,2500.6,2500.2,1.00099]
[1729706257252,3.2078,2500.5,2500.2,41.80099]
[1729706257454,0.592,2500.4,2500.3,0.40041]
[1729706257652,1.1641,2500.4,2500.3,0.40041]
[1729706257848,5.39706385,2500.4,2500.3,0.40041]
[1729706258666,5.79745385,2500.4,2500.3,0.40041]
[1729706258857,5.39706385,2500.4,2500.3,0.40041]
[1729706260859,12.91666385,2500.4,2500.2,0.40042]
[1729706261062,8.91746385,2500.4,2500.3,0.40041]
[1729706261264,8.51706385,2500.4,2500.0,0.40044]
[1729706261464,3.2078,2500.1,2500.0,0.40044]
[1729706261664,3.2078,2500.1,2499.6,1.2222]
[1729706261868,1.2088,2500.0,2499.9,0.40046]
[1729706262160,8.87106381,2500.0,2499.9,0.40046]
[1729706263260,9.27152381,2500.0,2499.9,0.40046]
[1729706263566,9.27152381,2500.0,2499.7,40.8]
[1729706263567,16.057438,2500.0,2499.7,40.8]
[1729706263863,3.12,2499.8,2499.4,1.1725]
[1729706264162,6.3278,2499.6,2499.4,41.9725]
[1729706264368,6.3278,2499.6,2499.4,0.40055]
[1729706264369,0.99654,2499.5,2499.4,0.40055]
[1729706264665,0.40056,2499.4,2499.2,0.40058]
[1729706264861,6.9051,2499.3,2499.2,0.40058]
[1729706265169,15.93244478,2499.3,2499.1,0.40059]
[1729706265360,3.12,2499.1,2498.6,0.5817]
[1729706265561,6.3278,2498.9,2498.8,0.40065]
[1729706265964,15.75236963,2498.9,2498.8,0.40065]
[1729706268464,16.15299963,2498.9,2498.8,0.40065]
[1729706268663,15.75236963,2498.9,2498.8,0.40065]
[1729706271876,7.40336963,2498.9,2498.8,0.40065]
[1729706272076,3.59408329,2498.9,2498.8,4.40225]
[1729706272282,2.59171008,2498.9,2498.8,4.40225]
[1729706272582,2.59171008,2498.9,2498.8,45.20225]
[1729706273479,2.59171008,2498.9,2498.8,41.20065]
[1729706280084,2.59171008,2498.9,2498.8,45.20225]
[1729706282387,2.59171008,2498.9,2498.8,41.20065]
[1729706283592,2.59171008,2498.9,2498.8,45.20225]
[1729706284092,2.59171008,2498.9,2498.8,41.20065]
[1729706285993,3.74851008,2498.9,2498.8,41.20065]
[1729706286897,7.75011008,2498.9,2498.8,41.20065]
[1729706287100,7.75011008,2498.9,2498.8,0.40065]
[1729706287397,8.15074008,2498.9,2498.8,0.40065]
[1729706287691,0.40065,2498.8,2498.7,0.40065]
[1729706287893,4.14915008,2498.9,2498.8,0.40065]
[1729706288093,1.1568,2498.9,2498.8,0.40065]
[1729706288297,5.68287488,2498.9,2498.8,0.40065]
[1729706292294,13.20510488,2498.9,2498.8,0.40065]
[1729706292899,12.80447488,2498.9,2498.6,40.8]
[1729706293193,6.72847,2498.7,2498.6,0.40067]
[1729706293599,10.93782506,2498.7,2498.6,0.40067]
[1729706293797,10.93782506,2498.7,2498.2,0.40073]
[1729706293798,15.54122506,2498.7,2498.2,0.40073]
[1729706293989,3.12,2498.3,2498.2,0.40073]
[1729706294303,7.75427394,2498.3,2497.9,40.8]
[1729706294598,6.72858,2498.0,2497.9,0.40079]
[1729706294993,10.96207394,2498.0,2497.6,40.8]
[1729706295191,0.40079,2497.9,2497.8,0.4008]
[1729706295597,4.98133823,2497.9,2497.8,0.4008]
[1729706295792,8.58374823,2497.9,2497.6,40.8]
[1729706296096,3.60863,2497.7,2497.6,0.40084]
[1729706296294,3.2078,2497.7,2497.6,0.40084]
[1729706296488,7.73145036,2497.7,2497.6,0.40084]
[1729706297997,8.13227036,2497.7,2497.6,0.40084]
[1729706298200,7.73145036,2497.7,2497.6,0.40084]
[1729706298499,7.73145036,2497.7,2497.2,40.8]
[1729706298697,3.12,2497.5,2497.2,40.8]
[1729706298898,3.12,2497.3,2497.2,41.2009]
[1729706299199,7.72788077,2497.3,2496.5,3.2078]
[1729706299398,3.12,2496.8,2496.5,3.2078]
[1729706299599,1.1655,2496.7,2496.6,0.401]
[1729706299805,5.77338077,2496.7,2496.6,41.201]
[1729706299992,5.77338077,2496.7,2496.6,40.8]
[1729706300196,5.77338077,2496.7,2496.2,3.2078]
[1729706300197,9.77898077,2496.7,2496.2,3.2078]
[1729706300402,5.77338077,2496.7,2496.6,0.401]
[1729706300802,9.77898077,2496.7,2496.6,0.401]
[1729706300993,5.77338077,2496.7,2496.5,0.40101]
[1729706301199,5.77338077,2496.7,2496.3,40.8]
[1729706301200,6.17438077,2496.7,2496.4,0.40102]
[1729706301504,6.17438077,2496.7,2496.3,40.8]
[1729706301505,5.77338077,2496.7,2496.3,40.8]
[1729706301693,3.52101,2496.6,2496.4,0.40103]
[1729706301899,3.12,2496.6,2496.5,0.40102]
[1729706302297,11.71268774,2496.6,2496.3,40.8]
[1729706302500,0.40103,2496.4,2496.3,40.8]
[1729706302813,4.63684888,2496.4,2496.3,40.8]
[1729706303106,11.76244888,2496.4,2496.3,40.8]
[1729706303302,12.33014888,2496.4,2496.1,0.40107]
[1729706303508,12.33014888,2496.4,2495.8,0.5844]
[1729706303509,8.32454888,2496.4,2496.2,0.40106]
[1729706303698,8.32454888,2496.4,2495.9,41.80279]
[1729706303895,8.32454888,2496.4,2495.9,40.8]
[1729706304598,8.32454888,2496.4,2496.2,0.40105]
[1729706305001,4.63684888,2496.4,2495.9,47.1278]
[1729706305302,3.23200273,2496.4,2496.3,0.40105]
[1729706306700,3.23200273,2496.4,2496.3,4.40665]
[1729706307101,1.42591926,2496.4,2496.3,4.40665]
[1729706308313,1.42591926,2496.4,2496.3,0.40105]
[1729706308709,1.42591926,2496.4,2496.3,4.40665]
[1729706311914,1.42591926,2496.4,2496.3,0.40105]
[1729706312216,1.40201431,2496.4,2496.3,0.40105]
[1729706313220,1.00098431,2496.4,2495.9,45.01056]
[1729706313517,1.40202431,2496.4,2496.0,1.00275]
[1729706313816,1.40202431,2496.4,2496.3,0.40105]
[1729706314010,1.00098431,2496.4,2496.3,0.40105]
[1729706314406,0.42248431,2496.4,2496.3,0.40105]
[1729706314608,0.42248431,2496.4,2496.3,4.40665]
[1729706314809,0.42248431,2496.4,2496.3,0.40105]
[1729706315616,0.82351431,2496.4,2496.3,0.40105]
[1729706315807,3.2078,2496.7,2496.6,0.401]
[1729706316316,7.83656598,2496.7,2496.6,0.401]
[1729706316517,3.2078,2496.7,2496.6,0.401]
[1729706316707,7.70152919,2496.7,2496.6,0.401]
[1729706320912,8.30222919,2496.7,2496.6,0.401]
[1729706324217,8.30222919,2496.7,2496.3,1.00259]
[1729706324522,8.30222919,2496.7,2496.2,3.2078]
[1729706324523,3.12,2496.5,2496.4,0.40102]
[1729706324820,7.60400567,2496.5,2496.4,0.40102]
[1729706325021,12.01062567,2496.5,2496.4,0.40102]
[1729706325315,12.01062567,2496.5,2496.3,0.40104]
[1729706325316,0.40104,2496.4,2496.3,0.40104]
[1729706325510,0.40109,2496.1,2496.0,0.40109]
[1729706325713,0.4011,2496.0,2495.9,0.4011]
[1729706326019,5.50873593,2496.0,2495.9,0.4011]
[1729706326211,9.51513593,2496.0,2495.5,1.00292]
[1729706326526,3.12,2495.8,2495.7,0.40113]
[1729706326818,7.56696051,2495.8,2495.7,0.40113]
[1729706327618,4.44696051,2495.8,2495.7,0.40113]
[1729706332215,3.84475314,2495.8,2495.7,0.40113]
[1729706332825,4.46785314,2495.8,2495.7,0.40113]
[1729706334520,14.80285314,2495.8,2495.5,40.8]
[1729706334714,0.40117,2495.6,2495.4,0.40118]
[1729706334919,0.6262,2495.5,2495.4,0.40118]
[1729706335224,0.6262,2495.5,2495.3,44.0078]
[1729706335225,8.67141463,2495.5,2495.3,44.0078]